bitfinex/quotes_BTCUSD_20250512
["timestamp","ask_amount","ask_price","bid_price","bid_amount"]
[1747059940635,0.00189931,103750.0,103740.0,1.01037804]
[1747059940835,4.002,103770.0,103760.0,0.557389]
[1747059941034,4.002,103770.0,103760.0,4.01458415]
[1747059941315,4.002,103770.0,103760.0,3.09474332]
[1747059941520,4.002,103770.0,103760.0,3.12365532]
[1747059941754,3.28198967,103770.0,103760.0,3.52365532]
[1747059942165,3.28198967,103770.0,103760.0,1.86630532]
[1747059942369,3.28198967,103770.0,103760.0,2.63435332]
[1747059942370,3.30126203,103770.0,103760.0,2.63435332]
[1747059942602,3.29162553,103770.0,103760.0,2.57130832]
[1747059942810,3.30126148,103770.0,103760.0,1.5854636]
[1747059943019,3.31189771,103770.0,103760.0,1.5874636]
[1747059943449,3.28198967,103770.0,103760.0,1.63040445]
[1747059943657,3.28298967,103770.0,103760.0,1.63440445]
[1747059944922,3.29262553,103770.0,103760.0,1.63440445]
[1747059945187,3.31189789,103770.0,103760.0,0.67127628]
[1747059945395,3.31189854,103770.0,103760.0,0.57051856]
[1747059945680,3.31189854,103770.0,103760.0,0.55602643]
[1747059946137,3.52589634,103770.0,103760.0,0.004]
[1747059946363,4.12175064,103770.0,103760.0,0.004]
[1747059947493,4.12175064,103770.0,103760.0,0.002]
[1747059948863,0.21204752,103750.0,103740.0,0.002]
[1747059949120,0.21204752,103750.0,103740.0,0.18515017]
[1747059949341,0.21204752,103750.0,103740.0,0.002]
[1747059949782,0.21204752,103750.0,103740.0,0.17551069]
[1747059949965,0.20240944,103750.0,103740.0,0.002]
[1747059950178,0.20240944,103750.0,103740.0,0.007]
[1747059950645,0.20240944,103750.0,103740.0,0.002]
[1747059950865,0.23330944,103750.0,103740.0,0.002]
[1747059951086,0.32916374,103750.0,103740.0,0.002]
[1747059951532,0.0151,103760.0,103740.0,0.18514952]
[1747059951756,0.23130168,103760.0,103750.0,0.19277079]
[1747059952366,0.23130168,103760.0,103750.0,0.20240897]
[1747059952581,0.22166471,103760.0,103750.0,0.19277098]
[1747059952722,0.21202746,103760.0,103750.0,0.19277098]
[1747059952951,0.21202746,103760.0,103750.0,0.18313252]
[1747059953185,0.21302746,103760.0,103750.0,0.19377088]
[1747059953391,0.21302746,103760.0,103750.0,0.17449397]
[1747059953596,0.21302746,103760.0,103750.0,0.19377061]
[1747059953801,0.01063706,103760.0,103750.0,0.20340851]
[1747059954016,0.01063706,103760.0,103750.0,0.55910851]
[1747059954017,0.02027375,103760.0,103750.0,0.55910851]
[1747059954230,0.01063678,103760.0,103750.0,0.55910851]
[1747059954454,0.02027384,103760.0,103750.0,0.55910851]
[1747059954847,0.001,103760.0,103750.0,0.55910851]
[1747059955284,0.001,103760.0,103750.0,3.68590366]
[1747059955665,0.001,103760.0,103750.0,3.22545766]
[1747059955866,3.79162571,103770.0,103760.0,0.557989]
[1747059956164,4.01326878,103770.0,103760.0,0.53275212]
[1747059956370,3.78198967,103770.0,103760.0,0.54238937]
[1747059956538,3.78198967,103770.0,103760.0,0.90673834]
[1747059956782,3.79162553,103770.0,103760.0,0.76356934]
[1747059957010,3.80126157,103770.0,103760.0,0.68697034]
[1747059957211,3.79162553,103770.0,103760.0,0.68697034]
[1747059957414,3.80126157,103770.0,103760.0,0.68697034]
[1747059957616,3.80226157,103770.0,103760.0,0.68797034]
[1747059958169,4.01426824,103770.0,103760.0,0.54638937]
[1747059958373,3.9949968,103770.0,103760.0,0.344]
[1747059958986,3.9949968,103770.0,103760.0,0.53675221]
[1747059959437,3.99499578,103770.0,103760.0,0.55602643]
[1747059959604,4.02390539,103770.0,103760.0,0.55602662]
[1747059959805,4.00463321,103770.0,103760.0,0.55602662]
[1747059960114,3.80226203,103770.0,103760.0,0.56566359]
[1747059960320,3.80226166,103770.0,103760.0,0.58226359]
[1747059960525,3.78298967,103770.0,103760.0,0.58226359]
[1747059960729,3.78298967,103770.0,103760.0,2.10816589]
[1747059960940,3.78284389,103770.0,103760.0,1.98066174]
[1747059961147,3.78284389,103770.0,103760.0,2.10327302]
[1747059961352,3.99485056,103770.0,103760.0,0.004]
[1747059961573,3.99485056,103770.0,103760.0,0.18711459]
[1747059961753,3.99485056,103770.0,103760.0,0.19675221]
[1747059961960,3.97557782,103770.0,103760.0,0.004]
[1747059962169,3.79248012,103770.0,103760.0,0.20638908]
[1747059962380,3.78284389,103770.0,103760.0,0.55602605]
[1747059962596,3.80211625,103770.0,103760.0,0.55602605]
[1747059963036,3.80211616,103770.0,103760.0,0.55602605]
[1747059963454,3.82138899,103770.0,103760.0,0.55602605]
[1747059963870,3.80211616,103770.0,103760.0,0.55602605]
[1747059964086,3.81175267,103770.0,103760.0,0.55602605]
[1747059964349,3.80211616,103770.0,103760.0,0.55602605]
[1747059964602,4.00448715,103770.0,103760.0,0.004]
[1747059964831,4.02665092,103770.0,103760.0,0.004]
[1747059965046,4.12250522,103770.0,103760.0,0.004]
[1747059965691,4.12250522,103770.0,103760.0,0.001]
[1747059965920,0.22168533,103750.0,103740.0,0.18514993]
[1747059966137,0.22168533,103750.0,103740.0,0.19478913]
[1747059966350,0.02891425,103750.0,103740.0,0.21406697]
[1747059966559,0.22168598,103750.0,103740.0,0.18514993]
[1747059966802,0.22168598,103750.0,103740.0,0.19478932]
[1747059967002,0.22168598,103750.0,103740.0,0.20442843]
[1747059967198,0.22168598,103750.0,103740.0,0.21506735]
[1747059967432,0.22166471,103760.0,103750.0,0.21204659]
[1747059967641,0.23130168,103760.0,103750.0,0.19277061]
[1747059967859,0.22166471,103760.0,103750.0,0.18313243]
[1747059968071,0.19277108,103750.0,103740.0,0.52614965]
[1747059968278,0.20240963,103750.0,103740.0,0.343]
[1747059968495,0.20340963,103750.0,103740.0,0.52715017]
[1747059968728,0.00963827,103750.0,103740.0,0.55406768]
[1747059968937,0.02891472,103750.0,103740.0,0.56370651]
[1747059969141,0.23132435,103750.0,103740.0,0.55406768]
[1747059969589,0.23132435,103750.0,103740.0,0.55506768]
[1747059969798,0.21304809,103750.0,103740.0,0.345]
[1747059970041,0.20340963,103750.0,103740.0,0.345]
[1747059970771,0.23460963,103750.0,103740.0,0.005]
[1747059971227,0.21930963,103750.0,103740.0,0.005]
[1747059971457,0.20340963,103750.0,103740.0,0.18815008]
[1747059971678,0.20340963,103750.0,103740.0,0.005]
[1747059972091,0.32212538,103750.0,103740.0,0.005]
[1747059972353,1.06635791,103750.0,103740.0,0.005]
[1747059973032,0.64220538,103750.0,103740.0,0.002]
[1747059973251,0.64891196,103750.0,103740.0,0.002]
[1747059973419,0.65691196,103750.0,103740.0,0.002]
[1747059973703,1.08006449,103750.0,103740.0,0.002]
[1747059974073,0.65691196,103750.0,103740.0,0.002]
[1747059974273,0.65663196,103750.0,103740.0,0.002]
[1747059974509,0.49547196,103750.0,103740.0,0.002]
[1747059974678,0.48876538,103750.0,103740.0,0.002]
[1747059975501,1.36231306,103750.0,103740.0,0.002]
[1747059975683,1.27645876,103750.0,103740.0,0.002]
[1747059976125,1.28315889,103750.0,103740.0,0.002]
[1747059976307,1.44443889,103750.0,103740.0,0.002]
[1747059976514,0.65674551,103750.0,103740.0,0.002]
[1747059976950,1.07989804,103750.0,103740.0,0.002]
[1747059977155,1.10443889,103750.0,103740.0,0.002]
[1747059978082,1.44443889,103750.0,103740.0,0.002]
[1747059978544,1.57379321,103750.0,103740.0,0.002]
[1747059978763,1.47793891,103750.0,103740.0,0.002]
[1747059979635,0.57238875,103730.0,103720.0,0.002]
[1747059979872,1.1010358,103730.0,103720.0,0.002]
[1747059980050,1.10773593,103730.0,103720.0,0.002]
[1747059980261,1.0058234,103730.0,103720.0,0.002]
[1747059981627,0.99912327,103730.0,103720.0,0.002]
[1747059981740,1.4242758,103730.0,103720.0,0.002]
[1747059981955,1.4819858,103730.0,103720.0,0.002]
[1747059982164,1.4262758,103730.0,103720.0,0.002]
[1747059982617,1.00312327,103730.0,103720.0,0.002]
[1747059982790,1.00112327,103730.0,103720.0,0.002]
[1747059982989,0.99912327,103730.0,103720.0,0.002]
[1747059983402,1.0087997,103730.0,103720.0,0.002]
[1747059984164,1.0117997,103730.0,103720.0,0.002]
[1747059984784,1.00512327,103730.0,103720.0,0.002]
[1747059986261,1.4282758,103730.0,103720.0,0.002]
[1747059986931,1.00512327,103730.0,103720.0,0.002]
[1747059987331,1.33977897,103730.0,103720.0,0.002]
[1747059987784,1.00512327,103730.0,103720.0,0.002]
[1747059988012,1.33977897,103730.0,103720.0,0.002]
[1747059988239,1.00512327,103730.0,103720.0,0.002]
[1747059988466,1.33977897,103730.0,103720.0,0.002]
[1747059990078,1.00512327,103730.0,103720.0,0.002]
[1747059990538,0.34388327,103730.0,103720.0,0.002]
[1747059990764,0.47236327,103730.0,103720.0,0.002]
[1747059990996,0.31308327,103730.0,103720.0,0.002]
[1747059991251,0.31308327,103730.0,103720.0,0.0184]
[1747059991476,0.31308327,103730.0,103720.0,0.002]
[1747059993050,0.34518327,103730.0,103720.0,0.002]
[1747059993272,0.67983897,103730.0,103720.0,0.002]
[1747059993489,0.34518327,103730.0,103720.0,0.002]
[1747059994192,0.32968327,103730.0,103720.0,0.002]
[1747059994423,0.31308327,103730.0,103720.0,0.002]
[1747059994942,0.67993897,103730.0,103720.0,0.002]
[1747059995168,0.34528327,103730.0,103720.0,0.002]
[1747059995382,0.67993897,103730.0,103720.0,0.002]
[1747059995824,1.01993897,103730.0,103720.0,0.002]
[1747059996510,1.02663499,103730.0,103720.0,0.002]
[1747059998950,1.35117584,103730.0,103720.0,0.002]
[1747059999159,2.14367154,103730.0,103720.0,0.002]
[1747059999388,1.80901584,103730.0,103720.0,0.002]
[1747059999629,1.84636305,103730.0,103720.0,0.002]
[1747060000051,1.19252931,103710.0,103700.0,0.01949576]
[1747060000282,2.19839931,103710.0,103700.0,0.01949576]
[1747060000483,2.20509533,103710.0,103700.0,0.01949576]
[1747060002062,2.29265528,103710.0,103700.0,0.01949576]
[1747060002332,2.03214934,103710.0,103700.0,0.01949576]
[1747060002529,2.12800364,103710.0,103700.0,0.01949576]
[1747060002774,2.22800364,103710.0,103700.0,0.01949576]
[1747060002995,2.12914934,103710.0,103700.0,0.01949576]
[1747060003212,2.13614934,103710.0,103700.0,0.01949576]
[1747060003452,0.6923,103690.0,103680.0,0.002]
[1747060003643,0.55221116,103670.0,103660.0,0.01126069]
[1747060003866,1.95184636,103670.0,103660.0,0.01126069]
[1747060004080,0.57712603,103660.0,103650.0,0.01968796]
[1747060004302,0.57712603,103660.0,103610.0,0.19720248]
[1747060004303,0.21231357,103620.0,103610.0,0.19720248]
[1747060004521,1.72536272,103620.0,103610.0,0.19720248]
[1747060004776,0.35454085,103590.0,103580.0,0.29742122]
[1747060005009,0.62228249,103580.0,103570.0,0.28610448]
[1747060005240,0.54780038,103550.0,103540.0,0.35504264]
[1747060005486,1.66347018,103550.0,103540.0,0.33948918]
[1747060005700,2.57577677,103550.0,103540.0,0.27152921]
[1747060005924,2.82231297,103550.0,103540.0,0.06934778]
[1747060006163,0.20291796,103490.0,103480.0,0.23650426]
[1747060006388,1.16678121,103490.0,103480.0,0.27361258]
[1747060006645,1.16678121,103490.0,103470.0,0.42336848]
[1747060006646,0.52747842,103480.0,103470.0,0.42336848]
[1747060006870,0.52747842,103480.0,103470.0,0.39836848]
[1747060006871,0.51747842,103480.0,103470.0,0.39836848]
[1747060007077,0.60879187,103480.0,103470.0,0.19281564]
[1747060007316,1.02441723,103480.0,103470.0,0.20781564]
[1747060007535,0.30845529,103480.0,103470.0,0.22321564]
[1747060007959,0.64845529,103480.0,103470.0,0.22311694]
[1747060008194,0.35845529,103480.0,103470.0,0.22511694]
[1747060008412,0.69845529,103480.0,103470.0,0.19471694]
[1747060008852,0.71271823,103480.0,103470.0,0.20971694]
[1747060009284,0.85295719,103470.0,103460.0,0.23143822]
[1747060009517,0.54331142,103460.0,103440.0,0.44401474]
[1747060009732,0.54331142,103460.0,103430.0,0.21869361]
[1747060009733,0.85301605,103440.0,103430.0,0.21869361]
[1747060010018,1.58942798,103440.0,103430.0,0.18488601]
[1747060010257,0.55757652,103430.0,103420.0,0.42995481]
[1747060010467,0.55757652,103430.0,103400.0,0.09242416]
[1747060010468,0.54807494,103410.0,103400.0,0.09242416]
[1747060010687,0.87785579,103410.0,103400.0,0.05861656]
[1747060010907,0.80307494,103410.0,103400.0,0.09575359]
[1747060011122,0.91347009,103410.0,103400.0,0.09575359]
[1747060011564,0.60892924,103410.0,103400.0,0.75355308]
[1747060011768,0.10552398,103410.0,103400.0,2.13408271]
[1747060011982,0.31826889,103410.0,103400.0,0.78873359]
[1747060012190,0.30859921,103410.0,103400.0,0.46765359]
[1747060012425,0.30859921,103410.0,103400.0,0.44917359]
[1747060012625,0.30859921,103410.0,103400.0,0.12765359]
[1747060012869,0.11519376,103410.0,103400.0,0.52765359]
[1747060013080,0.10926381,103410.0,103400.0,1.22986722]
[1747060013295,0.28606935,103410.0,103400.0,1.11463559]
[1747060013519,0.28606935,103410.0,103400.0,2.05612922]
[1747060013520,0.06947132,103410.0,103400.0,2.05612922]
[1747060013744,0.27254682,103410.0,103400.0,1.94888989]
[1747060013985,0.27254682,103410.0,103400.0,1.69449389]
[1747060013986,0.27054682,103410.0,103400.0,1.69449389]
[1747060014228,0.27054682,103410.0,103400.0,0.99093086]
[1747060014229,0.3075657,103410.0,103400.0,0.99093086]
[1747060014445,0.4161314,103410.0,103400.0,0.15747086]
[1747060014670,0.14339371,103410.0,103400.0,0.06161656]
[1747060014895,0.03701888,103410.0,103400.0,0.54773793]
[1747060015130,0.03701888,103410.0,103400.0,1.07148968]
[1747060015370,0.03701888,103410.0,103400.0,0.74215087]
[1747060015371,0.12006486,103410.0,103400.0,0.74215087]
[1747060015593,0.42006486,103410.0,103400.0,1.36185768]
[1747060015814,0.02421056,103410.0,103400.0,1.29057004]
[1747060016043,0.02421056,103410.0,103400.0,1.03997339]
[1747060016303,0.0532196,103410.0,103400.0,1.11648619]
[1747060016527,0.02521056,103410.0,103400.0,1.41823429]
[1747060016764,0.23308436,103410.0,103400.0,0.74471502]
[1747060016989,0.02900932,103410.0,103400.0,0.69563601]
[1747060017216,0.03000932,103410.0,103400.0,0.7189777]
[1747060017439,0.001,103410.0,103400.0,0.69321518]
[1747060017673,0.001,103410.0,103400.0,1.39136718]
[1747060017903,0.001,103410.0,103400.0,1.48722148]
[1747060018132,0.03801888,103410.0,103400.0,1.43974008]
[1747060018347,0.001,103410.0,103400.0,1.42454008]
[1747060018576,0.01066949,103410.0,103400.0,0.61480859]
[1747060018801,0.03801888,103410.0,103400.0,0.93730859]
[1747060019472,0.04768837,103410.0,103400.0,0.44952547]
[1747060019697,0.32812967,103410.0,103400.0,0.004]
[1747060019931,0.42398397,103410.0,103400.0,0.004]
[1747060020159,0.42498397,103410.0,103400.0,0.004]
[1747060020603,0.20309458,103400.0,103390.0,0.21025014]
[1747060020824,0.29894888,103400.0,103390.0,0.21025014]
[1747060021272,0.65394888,103400.0,103390.0,0.21025014]
[1747060021512,1.07964888,103400.0,103390.0,0.21025014]
[1747060021960,1.06964888,103400.0,103390.0,0.21025014]
[1747060022181,1.06394888,103400.0,103390.0,0.21021014]
[1747060022639,1.08194888,103400.0,103390.0,0.21121014]
[1747060022844,1.40648973,103400.0,103390.0,0.21121014]
[1747060023064,1.55026922,103400.0,103390.0,0.19379482]
[1747060023290,1.13401422,103390.0,103380.0,0.01707187]
[1747060023500,1.13401422,103390.0,103290.0,0.65071253]
[1747060023501,0.0193606,103300.0,103290.0,0.65071253]
[1747060023705,0.0193606,103300.0,103290.0,0.0958543]
[1747060023706,0.19364563,103300.0,103290.0,0.0958543]
[1747060023927,0.19364563,103300.0,103260.0,0.00193599]
[1747060023928,0.21303312,103270.0,103260.0,0.00193599]
[1747060024161,0.20338945,103250.0,103240.0,0.00193655]
[1747060024376,0.20338945,103250.0,103210.0,1.05585896]
[1747060024377,0.21311878,103230.0,103210.0,1.05585896]
[1747060024593,0.25372769,103240.0,103230.0,0.18405007]
[1747060024594,0.06,103240.0,103230.0,0.18405007]
[1747060024805,0.06,103260.0,103250.0,0.19370431]
[1747060025013,0.0958543,103260.0,103250.0,0.99065875]
[1747060025262,0.06,103270.0,103260.0,0.0096841]
[1747060025493,0.01,103270.0,103260.0,0.19368432]
[1747060025705,0.01,103270.0,103260.0,0.54419922]
[1747060025952,0.20330701,103320.0,103300.0,0.20328833]
[1747060026159,0.27295064,103310.0,103300.0,0.42032883]
[1747060026373,0.30880494,103310.0,103300.0,0.76032883]
[1747060026584,0.27295064,103310.0,103300.0,0.02032883]
[1747060026808,0.01935986,103300.0,103290.0,0.6109948]
[1747060027021,0.01935976,103300.0,103290.0,2.31309329]
[1747060027247,0.2535921,103310.0,103290.0,0.4631543]
[1747060027469,0.3,103310.0,103300.0,3.2991473]
[1747060027683,0.5894464,103310.0,103300.0,0.80677949]
[1747060027893,0.27295084,103310.0,103300.0,1.31231423]
[1747060028106,0.2129099,103330.0,103320.0,0.1838945]
[1747060028329,0.38811844,103330.0,103320.0,0.623281]
[1747060028556,0.19357209,103340.0,103320.0,0.67001921]
[1747060028756,0.21290943,103330.0,103320.0,0.46677949]
[1747060028999,0.27290943,103330.0,103320.0,0.46677949]
[1747060029198,0.21290943,103330.0,103320.0,0.0689408]
[1747060029422,0.232309,103310.0,103300.0,0.341]
[1747060029639,0.21295102,103310.0,103300.0,0.001]
[1747060029871,0.75737102,103310.0,103300.0,0.001]
[1747060030091,0.28275887,103250.0,103240.0,0.18403622]
[1747060030309,0.00968532,103240.0,103230.0,0.19370951]
[1747060030531,0.08905155,103260.0,103250.0,0.1937045]
[1747060030756,0.07936716,103260.0,103250.0,0.88426752]
[1747060030967,0.07936716,103260.0,103250.0,0.75633791]
[1747060030968,0.23242092,103260.0,103250.0,0.75633791]
[1747060031218,0.0987349,103260.0,103250.0,1.80231867]
[1747060031422,0.20335024,103270.0,103260.0,0.20336898]
[1747060031423,0.01,103270.0,103260.0,0.20336898]
[1747060031649,1.46577009,103320.0,103300.0,0.18393019]
[1747060031650,0.07067923,103310.0,103300.0,0.18393019]
[1747060031874,0.001,103310.0,103300.0,1.49981472]
[1747060032093,0.06,103330.0,103320.0,0.52389356]
[1747060032310,0.01935142,103350.0,103340.0,0.16450542]
[1747060032528,0.21286841,103350.0,103340.0,0.46677949]
[1747060032744,0.2225644,103340.0,103330.0,0.17419868]
[1747060032992,0.29226347,103330.0,103320.0,0.40981123]
[1747060033224,0.20325184,103320.0,103310.0,0.19784]
[1747060033668,5.06,103330.0,103310.0,0.70239262]
[1747060033887,5.06,103330.0,103320.0,0.52389356]
[1747060033888,5.00967698,103330.0,103320.0,0.52389356]
[1747060034103,5.0,103330.0,103320.0,0.99067305]
[1747060034308,5.00967688,103330.0,103320.0,2.49469805]
[1747060034513,5.00967688,103330.0,103320.0,2.41494235]
[1747060034724,5.19355463,103330.0,103310.0,0.50455328]
[1747060034942,5.0,103330.0,103320.0,1.40429475]
[1747060035149,4.14183915,103330.0,103320.0,1.4342592]
[1747060035368,4.07757338,103330.0,103320.0,1.4342592]
[1747060035628,3.33441407,103330.0,103320.0,1.4043592]
[1747060035841,0.33281407,103330.0,103320.0,1.4143592]
[1747060036051,0.0096722,103380.0,103370.0,0.52380413]
[1747060036261,0.35993318,103390.0,103380.0,0.34]
[1747060036480,0.27280664,103380.0,103370.0,0.2936943]
[1747060036686,0.22850664,103380.0,103370.0,0.0958543]
[1747060036908,0.28852722,103370.0,103350.0,0.51416395]
[1747060037113,0.27282647,103370.0,103360.0,0.88811349]
[1747060037361,0.27091796,103390.0,103380.0,0.49476881]
[1747060037362,0.06,103390.0,103380.0,0.49476881]
[1747060037566,0.26912522,103400.0,103380.0,0.52378617]
[1747060037787,0.22243753,103400.0,103390.0,0.4764516]
[1747060039074,0.28237185,103430.0,103420.0,0.90437816]
[1747060039507,0.27953577,103430.0,103420.0,0.4358543]
[1747060039715,0.08900362,103430.0,103420.0,0.34]
[1747060039923,0.27270376,103430.0,103420.0,0.34]
[1747060040137,0.25336749,103430.0,103420.0,0.90437816]
[1747060040350,0.21268227,103440.0,103430.0,0.18369826]
[1747060040589,0.26301558,103440.0,103430.0,1.08826569]
[1747060040821,0.20303567,103430.0,103420.0,0.4]
[1747060041036,0.21274434,103410.0,103400.0,1.14095089]
[1747060041250,0.25340235,103420.0,103410.0,0.34967015]
[1747060041483,0.06966846,103420.0,103410.0,1.13669734]
[1747060041691,0.06966865,103420.0,103410.0,1.35079678]
[1747060041922,0.2823927,103420.0,103410.0,1.34112785]
[1747060042131,0.2823927,103420.0,103410.0,1.15603736]
[1747060042364,0.26503558,103430.0,103420.0,0.16437807]
[1747060042571,0.28437138,103430.0,103420.0,1.56470571]
[1747060042788,0.29403891,103430.0,103420.0,0.49652407]
[1747060042994,0.29403966,103430.0,103420.0,0.205198]
[1747060043210,0.21272451,103420.0,103410.0,0.4958543]
[1747060043427,0.30322451,103420.0,103410.0,0.0958543]
[1747060043641,0.19536749,103430.0,103420.0,0.00966921]
[1747060043642,0.07933552,103430.0,103420.0,0.00966921]
[1747060043902,0.03867487,103420.0,103410.0,0.17406393]
[1747060044106,0.27272433,103420.0,103410.0,0.197925]
[1747060044387,0.28237185,103430.0,103420.0,0.16437807]
[1747060044608,0.1933488,103440.0,103430.0,0.17403064]
[1747060044609,0.08900109,103440.0,103430.0,0.17403064]
[1747060044824,0.06966678,103440.0,103430.0,0.29115452]
[1747060045043,0.06966678,103440.0,103430.0,0.28922112]
[1747060045265,0.28235045,103440.0,103430.0,0.0958543]
[1747060045492,0.28235045,103440.0,103380.0,0.15476881]
[1747060045493,0.19338619,103420.0,103380.0,0.15476881]
[1747060045729,0.19338619,103420.0,103390.0,0.3685343]
[1747060045730,0.21277727,103400.0,103390.0,0.3685343]
[1747060045949,0.27277727,103400.0,103390.0,0.3685343]
[1747060046614,0.21280645,103380.0,103370.0,0.41768]
[1747060046844,0.23219645,103360.0,103350.0,0.44997263]
[1747060047059,0.01934844,103360.0,103350.0,1.20727437]
[1747060047288,0.28252237,103360.0,103350.0,0.3717743]
[1747060047515,0.27284801,103360.0,103350.0,0.27592]
[1747060047752,0.30364745,103360.0,103350.0,0.27592]
[1747060047984,0.30364745,103360.0,103350.0,0.64133647]
[1747060047985,0.001,103360.0,103350.0,0.64133647]
[1747060048427,0.001,103360.0,103350.0,0.99587732]
[1747060048682,0.23219626,103360.0,103350.0,0.2642953]
[1747060048907,0.01935292,103340.0,103330.0,0.60155575]
[1747060049131,0.02902859,103340.0,103330.0,3.16065905]
[1747060049357,0.06,103350.0,103340.0,0.0096766]
[1747060049556,0.06,103350.0,103340.0,1.01742414]
[1747060049855,0.00967754,103330.0,103320.0,0.27268]
[1747060050099,0.21295046,103310.0,103300.0,0.43892911]
[1747060050353,0.00967876,103310.0,103300.0,0.90222545]
[1747060050604,0.06,103320.0,103310.0,0.52391136]
[1747060050828,0.06,103330.0,103320.0,0.18389356]
[1747060051058,0.06,103330.0,103320.0,0.09778955]
[1747060051059,0.26323217,103330.0,103320.0,0.09778955]
[1747060051288,0.0193578,103310.0,103300.0,0.45828897]
[1747060051520,0.01067876,103310.0,103300.0,1.22891827]
[1747060051745,0.23330909,103310.0,103300.0,0.1028543]
[1747060051977,0.7116306,103310.0,103300.0,0.007]
[1747060052221,0.7116306,103310.0,103260.0,0.58324244]
[1747060052222,0.222716,103270.0,103260.0,0.58324244]
[1747060052452,0.06,103280.0,103270.0,0.17429961]
[1747060052672,0.08904555,103280.0,103270.0,0.54849307]
[1747060052899,0.26325323,103290.0,103280.0,0.50460098]
[1747060053123,0.06,103290.0,103280.0,0.27981908]
[1747060053346,0.11963712,103310.0,103300.0,0.17424956]
[1747060053588,0.10027876,103310.0,103300.0,0.4377901]
[1747060053817,0.01936248,103290.0,103270.0,0.55493366]
[1747060054045,0.00968119,103290.0,103280.0,0.5142832]
[1747060054272,0.21299224,103290.0,103280.0,0.5142832]
[1747060054532,0.22265105,103300.0,103290.0,0.34]
[1747060054852,0.21297126,103300.0,103290.0,0.34]
[1747060054947,0.00967923,103310.0,103300.0,0.1645688]
[1747060055175,0.01935686,103320.0,103310.0,0.16455328]
[1747060055398,0.22262949,103310.0,103300.0,0.00362497]
[1747060055619,0.00968166,103280.0,103270.0,0.57429989]
[1747060055854,0.04841055,103280.0,103270.0,0.61015447]
[1747060056127,0.20335024,103270.0,103260.0,0.27376]
[1747060056349,0.20335024,103270.0,103260.0,0.001]
[1747060056573,0.01936623,103270.0,103260.0,0.5250004]
[1747060056807,0.22271657,103270.0,103260.0,0.001]
[1747060057037,0.22271657,103270.0,103260.0,0.01262091]
[1747060057266,0.22396708,103270.0,103260.0,0.001]
[1747060057709,0.78794411,103270.0,103260.0,0.001]
[1747060057934,0.35142138,103270.0,103260.0,0.001]
[1747060058402,0.35142138,103270.0,103260.0,0.004]
[1747060058639,0.17712081,103270.0,103260.0,0.004]
[1747060058878,0.32950426,103270.0,103260.0,0.001]
[1747060059102,0.24333312,103270.0,103260.0,0.001]
[1747060060019,0.33918742,103270.0,103260.0,0.001]
[1747060060237,0.34218742,103270.0,103260.0,0.002]
[1747060060476,0.24633312,103270.0,103260.0,0.002]
[1747060060939,0.24333312,103270.0,103260.0,0.001]
[1747060061615,0.34018742,103270.0,103260.0,0.001]
[1747060061856,0.37318742,103270.0,103260.0,0.001]
[1747060063070,0.37318742,103270.0,103260.0,0.20436898]
[1747060063071,0.001,103270.0,103260.0,0.20436898]
[1747060063285,0.001,103270.0,103260.0,3.65476413]
[1747060063512,0.0303,103300.0,103290.0,0.20330992]
[1747060063749,0.23230872,103310.0,103300.0,0.19361035]
[1747060063969,0.22265142,103300.0,103290.0,0.1936291]
[1747060064192,0.00967969,103300.0,103290.0,1.83828078]
[1747060064429,0.08540053,103330.0,103320.0,0.18389459]
[1747060064666,0.203291,103300.0,103290.0,0.0958543]
[1747060064887,0.0312,103300.0,103290.0,0.19362928]
[1747060065112,0.01935976,103300.0,103290.0,0.19362891]
[1747060065334,0.19362481,103340.0,103320.0,0.17420602]
[1747060065550,0.2129098,103330.0,103320.0,0.00967866]
[1747060065761,0.01935639,103320.0,103310.0,0.20323863]
[1747060065992,0.00967791,103320.0,103310.0,0.63909293]
[1747060066206,0.22462481,103340.0,103320.0,0.19357213]
[1747060066423,0.0290314,103330.0,103310.0,0.0958543]
[1747060066647,0.02903467,103320.0,103310.0,0.00193543]
[1747060066877,0.21297164,103300.0,103290.0,0.003]
[1747060067091,0.01936154,103290.0,103280.0,0.02904639]
[1747060067311,0.01935986,103300.0,103290.0,0.20330365]
[1747060067565,0.00967923,103310.0,103300.0,0.20329023]
[1747060067758,0.22260747,103320.0,103310.0,0.18391249]
[1747060067979,0.20329119,103300.0,103290.0,0.18394118]
[1747060068237,0.03872403,103290.0,103280.0,0.20332766]
[1747060068453,0.03872403,103290.0,103280.0,0.89701485]
[1747060068454,0.001,103290.0,103280.0,0.89701485]
[1747060068662,0.001,103290.0,103280.0,0.5609677]
[1747060068886,0.03972411,103290.0,103280.0,0.2180096]
[1747060069108,0.001,103290.0,103280.0,1.20018766]
[1747060069326,0.001,103290.0,103280.0,0.47375892]
[1747060069327,0.01068063,103290.0,103280.0,0.47375892]
[1747060069557,0.03872365,103290.0,103280.0,0.21300942]
[1747060069777,0.02904695,103280.0,103270.0,0.17430037]
[1747060070011,0.0193636,103280.0,103270.0,0.34024648]
[1747060070229,0.20333074,103280.0,103270.0,0.29722937]
[1747060070458,0.00968072,103290.0,103280.0,0.20332962]
[1747060070677,0.22265114,103300.0,103290.0,0.18394791]
[1747060070921,0.19827348,103310.0,103290.0,0.20330973]
[1747060071140,0.21297135,103300.0,103290.0,0.183948]
[1747060071386,0.21399234,103290.0,103280.0,0.004]
[1747060071606,0.01068101,103290.0,103280.0,0.19958385]
[1747060071820,0.01068101,103290.0,103280.0,0.30318392]
[1747060071821,0.001,103290.0,103280.0,0.30318392]
[1747060072030,0.001,103290.0,103280.0,3.64318392]
[1747060072666,0.01935995,103300.0,103290.0,0.18394696]
[1747060072919,0.02904011,103300.0,103290.0,1.5745966]
[1747060073135,0.01935985,103300.0,103290.0,1.00778765]
[1747060073340,0.03872027,103300.0,103290.0,0.47243496]
[1747060073557,0.03872018,103300.0,103290.0,0.47043496]
[1747060073837,0.22262987,103310.0,103300.0,0.17424947]
[1747060074089,0.03871634,103310.0,103300.0,0.19360951]
[1747060074326,0.02903693,103310.0,103300.0,0.19360951]
[1747060074539,0.02903712,103310.0,103300.0,0.18392963]
[1747060074759,0.03871672,103310.0,103300.0,0.16456921]
[1747060074979,0.21297126,103300.0,103290.0,0.402]
[1747060075218,0.1935921,103310.0,103300.0,0.18392963]
[1747060075448,0.22677673,103320.0,103300.0,0.42549266]
[1747060075671,0.02903496,103320.0,103310.0,0.1858475]
[1747060075906,0.21295045,103310.0,103300.0,0.61978336]
[1747060076122,0.01935817,103310.0,103300.0,0.60042332]
[1747060076339,0.02903693,103310.0,103300.0,0.74038736]
[1747060076587,0.1935921,103310.0,103290.0,0.16458513]
[1747060076798,0.24595279,103310.0,103300.0,0.17424909]